[Event "Titled Tuesday Blitz March 07 Late 2023"]
[White "Di Berardino, Diego Rafael"]
[Black "Needleman, Alejandro"]
[WhiteFideId "2105446"]
[BlackFideId "100730"]
[WhiteElo "2432"]
[BlackElo "2230"]
[Result "1-0"]
[Round "01"]
[TimeControl "180+2"]
[Date "2023.03.07"]
[WhiteClock "0:01:02"]
[BlackClock "0:00:18"]

1. e4 {[%clk 0:02:57]}  c5 {[%clk 0:02:59]} 2. Nf3 {[%clk 0:02:52]}  e6 {[%clk 0:03:00]} 3. d4 {[%clk 0:02:47]}  cxd4 {[%clk 0:03:00]} 4. Nxd4 {[%clk 0:02:48]}  Nc6 {[%clk 0:03:00]} 5. Nc3 {[%clk 0:02:48]}  Qc7 {[%clk 0:03:00]} 6. Be2 {[%clk 0:02:46]}  a6 {[%clk 0:03:00]} 7. O-O {[%clk 0:02:45]}  b5 {[%clk 0:03:00]} 8. Nxc6 {[%clk 0:02:38]}  dxc6 {[%clk 0:03:01]} 9. f4 {[%clk 0:02:33]}  Nf6 {[%clk 0:03:01]} 10. Bf3 {[%clk 0:02:32]}  Be7 {[%clk 0:02:55]} 11. e5 {[%clk 0:02:22]}  Nd5 {[%clk 0:02:53]} 12. Ne4 {[%clk 0:02:21]}  c5 {[%clk 0:02:52]} 13. Bd2 {[%clk 0:01:53]}  Bb7 {[%clk 0:02:50]} 14. Qe2 {[%clk 0:01:53]}  c4 {[%clk 0:02:50]} 15. Kh1 {[%clk 0:01:51]}  O-O {[%clk 0:02:31]} 16. Rae1 {[%clk 0:01:47]}  Rad8 {[%clk 0:02:19]} 17. Qf2 {[%clk 0:01:46]}  Kh8 {[%clk 0:02:14]} 18. Qg3 {[%clk 0:01:44]}  Nb4 {[%clk 0:02:04]} 19. Nd6 {[%clk 0:01:17]}  Bxf3 {[%clk 0:01:56]} 20. Bxb4 {[%clk 0:01:17]}  Bh5 {[%clk 0:01:38]} 21. f5 {[%clk 0:01:15]}  Rg8 {[%clk 0:01:11]} 22. Qh3 {[%clk 0:01:09]}  Rxd6 {[%clk 0:00:19]} 23. exd6 {[%clk 0:01:05]}  Bxd6 {[%clk 0:00:20]} 24. Bxd6 {[%clk 0:01:05]}  Qxd6 {[%clk 0:00:21]} 25. Qxh5 {[%clk 0:01:06]}  exf5 {[%clk 0:00:20]} 26. Qxf7 {[%clk 0:01:03]}  c3 {[%clk 0:00:18]} 27. Re8 {[%clk 0:01:02]} 1-0


[Site "https://www.chess.com"]

[Event "Titled Tuesday Blitz March 07 Late 2023"]
[White "Szente Varga, Fruzsina"]
[Black "Atanasov, Anthony"]
[WhiteFideId "712264"]
[BlackFideId "2623897"]
[WhiteElo "1994"]
[BlackElo "2206"]
[Result "1-0"]
[Round "01"]
[TimeControl "180+2"]
[Date "2023.03.07"]
[WhiteClock "0:01:22"]
[BlackClock "0:00:01"]

1. e4 {[%clk 0:03:00]}  e5 {[%clk 0:03:00]} 2. Nf3 {[%clk 0:02:59]}  Nf6 {[%clk 0:02:59]} 3. Nc3 {[%clk 0:02:58]}  Nc6 {[%clk 0:02:58]} 4. d4 {[%clk 0:02:54]}  exd4 {[%clk 0:02:59]} 5. Nd5 {[%clk 0:02:54]}  Bc5 {[%clk 0:02:58]} 6. Bc4 {[%clk 0:02:45]}  O-O {[%clk 0:02:54]} 7. O-O {[%clk 0:02:45]}  Nxe4 {[%clk 0:02:53]} 8. Re1 {[%clk 0:02:41]}  Nd6 {[%clk 0:02:49]} 9. Bg5 {[%clk 0:02:39]}  Nxc4 {[%clk 0:02:08]} 10. Bxd8 {[%clk 0:02:38]}  Rxd8 {[%clk 0:02:09]} 11. Ng5 {[%clk 0:02:32]}  h6 {[%clk 0:01:58]} 12. Ne4 {[%clk 0:02:28]}  d6 {[%clk 0:01:46]} 13. Nxc5 {[%clk 0:02:23]}  dxc5 {[%clk 0:01:45]} 14. Ne7+ {[%clk 0:02:24]}  Nxe7 {[%clk 0:01:27]} 15. Rxe7 {[%clk 0:02:24]}  Bd7 {[%clk 0:01:09]} 16. Qh5 {[%clk 0:02:11]}  Nd6 {[%clk 0:01:03]} 17. Qxc5 {[%clk 0:02:10]}  Bc6 {[%clk 0:00:43]} 18. Rae1 {[%clk 0:02:01]}  Nb5 {[%clk 0:00:27]} 19. Qh5 {[%clk 0:01:37]}  Bd5 {[%clk 0:00:16]} 20. a4 {[%clk 0:01:35]}  g6 {[%clk 0:00:08]} 21. Qxh6 {[%clk 0:01:28]}  Nd6 {[%clk 0:00:08]} 22. h4 {[%clk 0:01:26]}  Nf5 {[%clk 0:00:08]} 23. Qg5 {[%clk 0:01:23]}  Nxe7 {[%clk 0:00:09]} 24. Rxe7 {[%clk 0:01:24]}  Rd6 {[%clk 0:00:01]} 25. h5 {[%clk 0:01:22]} 1-0


[Site "https://www.chess.com"]

[Event "Titled Tuesday Blitz March 07 Late 2023"]
[White "Gerbelli Neto, Eduardo"]
[Black "Carnicelli, Valerio"]
[WhiteFideId "2103281"]
[BlackFideId "856185"]
[WhiteElo "2178"]
[BlackElo "2319"]
[Result "1-0"]
[Round "01"]
[TimeControl "180+2"]
[Date "2023.03.07"]
[WhiteClock "0:00:49"]
[BlackClock "0:00:23"]

1. e4 {[%clk 0:03:00]}  c6 {[%clk 0:02:58]} 2. d4 {[%clk 0:02:59]}  d5 {[%clk 0:02:59]} 3. exd5 {[%clk 0:03:00]}  cxd5 {[%clk 0:02:58]} 4. c4 {[%clk 0:03:01]}  Nf6 {[%clk 0:02:55]} 5. Nc3 {[%clk 0:03:01]}  e6 {[%clk 0:02:54]} 6. Nf3 {[%clk 0:03:01]}  Be7 {[%clk 0:02:51]} 7. cxd5 {[%clk 0:03:01]}  Nxd5 {[%clk 0:02:50]} 8. Bd3 {[%clk 0:03:02]}  O-O {[%clk 0:02:47]} 9. O-O {[%clk 0:03:02]}  Nxc3 {[%clk 0:02:42]} 10. bxc3 {[%clk 0:03:01]}  Nd7 {[%clk 0:02:40]} 11. Qc2 {[%clk 0:02:54]}  Nf6 {[%clk 0:02:39]} 12. Ne5 {[%clk 0:02:49]}  Bd7 {[%clk 0:02:36]} 13. Rb1 {[%clk 0:02:46]}  b6 {[%clk 0:02:36]} 14. Bg5 {[%clk 0:02:32]}  h6 {[%clk 0:02:31]} 15. Bxf6 {[%clk 0:02:23]}  Bxf6 {[%clk 0:02:32]} 16. Qe2 {[%clk 0:02:23]}  Bxe5 {[%clk 0:02:19]} 17. Qxe5 {[%clk 0:02:18]}  Bc6 {[%clk 0:02:13]} 18. Rfe1 {[%clk 0:02:05]}  Qd5 {[%clk 0:02:12]} 19. Qxd5 {[%clk 0:02:02]}  Bxd5 {[%clk 0:02:12]} 20. c4 {[%clk 0:02:02]}  Bc6 {[%clk 0:02:11]} 21. Be4 {[%clk 0:01:55]}  Rac8 {[%clk 0:02:11]} 22. d5 {[%clk 0:01:52]}  exd5 {[%clk 0:02:08]} 23. cxd5 {[%clk 0:01:49]}  Bd7 {[%clk 0:01:54]} 24. Rbc1 {[%clk 0:01:49]}  Rfe8 {[%clk 0:01:53]} 25. f3 {[%clk 0:01:36]}  Kf8 {[%clk 0:01:50]} 26. d6 {[%clk 0:01:29]}  Rxc1 {[%clk 0:01:12]} 27. Rxc1 {[%clk 0:01:30]}  Rc8 {[%clk 0:01:12]} 28. Rxc8+ {[%clk 0:01:24]}  Bxc8 {[%clk 0:01:13]} 29. Bc6 {[%clk 0:01:25]}  Be6 {[%clk 0:01:13]} 30. a4 {[%clk 0:01:21]}  g5 {[%clk 0:01:09]} 31. Kf2 {[%clk 0:01:21]}  f5 {[%clk 0:01:08]} 32. Ke3 {[%clk 0:01:20]}  Kf7 {[%clk 0:01:04]} 33. Kd4 {[%clk 0:01:18]}  Kf6 {[%clk 0:01:04]} 34. g3 {[%clk 0:01:13]}  h5 {[%clk 0:01:03]} 35. h4 {[%clk 0:01:12]}  gxh4 {[%clk 0:00:29]} 36. gxh4 {[%clk 0:01:11]}  Bf7 {[%clk 0:00:29]} 37. f4 {[%clk 0:01:03]}  Ke6 {[%clk 0:00:24]} 38. Bd5+ {[%clk 0:01:00]}  Kf6 {[%clk 0:00:24]} 39. Bxf7 {[%clk 0:01:00]}  Kxf7 {[%clk 0:00:25]} 40. Ke5 {[%clk 0:01:00]}  a6 {[%clk 0:00:25]} 41. Kd5 {[%clk 0:00:49]}  b5 {[%clk 0:00:23]} 42. axb5 {[%clk 0:00:50]}  axb5 {[%clk 0:00:23]} 43. Kc6 {[%clk 0:00:50]}  b4 {[%clk 0:00:23]} 44. d7 {[%clk 0:00:49]} 1-0


[Site "https://www.chess.com"]

[Event "Titled Tuesday Blitz March 07 Late 2023"]
[White "Fishbein, Alexander"]
[Black "Barash, Anton"]
[WhiteFideId "2000377"]
[BlackFideId "30935229"]
[WhiteElo "2415"]
[BlackElo "2317"]
[Result "1-0"]
[Round "01"]
[TimeControl "180+2"]
[Date "2023.03.07"]
[WhiteClock "0:01:36"]
[BlackClock "0:01:31"]

1. e4 {[%clk 0:03:00]}  e6 {[%clk 0:02:38]} 2. d4 {[%clk 0:02:59]}  d5 {[%clk 0:02:38]} 3. exd5 {[%clk 0:02:59]}  exd5 {[%clk 0:02:38]} 4. Nf3 {[%clk 0:03:00]}  Bd6 {[%clk 0:02:38]} 5. c4 {[%clk 0:02:58]}  Nf6 {[%clk 0:02:30]} 6. c5 {[%clk 0:02:56]}  Be7 {[%clk 0:02:29]} 7. Bd3 {[%clk 0:02:56]}  O-O {[%clk 0:02:29]} 8. O-O {[%clk 0:02:55]}  b6 {[%clk 0:02:29]} 9. Be3 {[%clk 0:02:55]}  Bb7 {[%clk 0:02:22]} 10. Nc3 {[%clk 0:02:53]}  Nbd7 {[%clk 0:02:20]} 11. b4 {[%clk 0:02:52]}  a5 {[%clk 0:02:20]} 12. a3 {[%clk 0:02:51]}  Ne4 {[%clk 0:02:15]} 13. Qc2 {[%clk 0:02:47]}  Ndf6 {[%clk 0:02:15]} 14. Ne5 {[%clk 0:02:44]}  g6 {[%clk 0:02:09]} 15. Rfe1 {[%clk 0:02:30]}  Re8 {[%clk 0:02:08]} 16. f3 {[%clk 0:02:24]}  Nxc3 {[%clk 0:02:08]} 17. Qxc3 {[%clk 0:02:24]}  Bf8 {[%clk 0:02:08]} 18. Bg5 {[%clk 0:02:19]}  Bg7 {[%clk 0:02:06]} 19. Bb5 {[%clk 0:02:13]}  Rf8 {[%clk 0:01:45]} 20. Nd7 {[%clk 0:01:50]}  c6 {[%clk 0:01:41]} 21. Nxf8 {[%clk 0:01:49]}  cxb5 {[%clk 0:01:38]} 22. c6 {[%clk 0:01:45]}  Qc7 {[%clk 0:01:33]} 23. cxb7 {[%clk 0:01:37]}  Rxf8 {[%clk 0:01:31]} 24. Qxc7 {[%clk 0:01:36]} 1-0


[Site "https://www.chess.com"]

[Event "Titled Tuesday Blitz March 07 Late 2023"]
[White "Melikhov, Evgeny V."]
[Black "Oro, Faustino"]
[WhiteFideId "4122046"]
[BlackFideId "20000197"]
[WhiteElo "2158"]
[BlackElo "1984"]
[Result "1/2-1/2"]
[Round "01"]
[TimeControl "180+2"]
[Date "2023.03.07"]
[WhiteClock "0:00:06"]
[BlackClock "0:00:09"]

1. d4 {[%clk 0:02:20]}  Nf6 {[%clk 0:02:59]} 2. c4 {[%clk 0:02:19]}  e6 {[%clk 0:02:59]} 3. Nc3 {[%clk 0:02:19]}  d5 {[%clk 0:02:59]} 4. cxd5 {[%clk 0:02:19]}  exd5 {[%clk 0:03:00]} 5. Bg5 {[%clk 0:02:19]}  Be7 {[%clk 0:03:00]} 6. e3 {[%clk 0:02:19]}  O-O {[%clk 0:03:00]} 7. Bd3 {[%clk 0:02:19]}  Re8 {[%clk 0:03:00]} 8. Nf3 {[%clk 0:02:14]}  Nbd7 {[%clk 0:02:55]} 9. O-O {[%clk 0:02:14]}  h6 {[%clk 0:02:55]} 10. Bh4 {[%clk 0:02:13]}  c6 {[%clk 0:02:55]} 11. Qc2 {[%clk 0:02:12]}  Nf8 {[%clk 0:02:54]} 12. h3 {[%clk 0:02:12]}  Ne4 {[%clk 0:02:50]} 13. Bxe4 {[%clk 0:02:10]}  Bxh4 {[%clk 0:02:48]} 14. Bd3 {[%clk 0:02:07]}  Be7 {[%clk 0:02:47]} 15. Rab1 {[%clk 0:02:06]}  Bd6 {[%clk 0:02:39]} 16. b4 {[%clk 0:02:06]}  Qf6 {[%clk 0:02:39]} 17. e4 {[%clk 0:01:44]}  dxe4 {[%clk 0:02:00]} 18. Nxe4 {[%clk 0:01:43]}  Qd8 {[%clk 0:01:52]} 19. Nxd6 {[%clk 0:01:43]}  Qxd6 {[%clk 0:01:52]} 20. b5 {[%clk 0:01:41]}  Bd7 {[%clk 0:01:39]} 21. Qc5 {[%clk 0:01:28]}  Qxc5 {[%clk 0:01:20]} 22. dxc5 {[%clk 0:01:28]}  Ne6 {[%clk 0:01:17]} 23. Rfc1 {[%clk 0:01:25]}  Nf4 {[%clk 0:01:15]} 24. Bf1 {[%clk 0:01:24]}  cxb5 {[%clk 0:01:11]} 25. g3 {[%clk 0:01:12]}  Ne2+ {[%clk 0:01:02]} 26. Bxe2 {[%clk 0:01:09]}  Rxe2 {[%clk 0:01:03]} 27. Nd4 {[%clk 0:01:09]}  Rxa2 {[%clk 0:01:02]} 28. Nxb5 {[%clk 0:01:08]}  Bc6 {[%clk 0:00:54]} 29. Nd4 {[%clk 0:01:06]}  Be4 {[%clk 0:00:51]} 30. Rb4 {[%clk 0:00:58]}  Rd8 {[%clk 0:00:49]} 31. c6 {[%clk 0:00:44]}  bxc6 {[%clk 0:00:35]} 32. Nxc6 {[%clk 0:00:44]}  Bxc6 {[%clk 0:00:31]} 33. Rxc6 {[%clk 0:00:43]}  Rdd2 {[%clk 0:00:31]} 34. Rf4 {[%clk 0:00:40]}  f6 {[%clk 0:00:31]} 35. h4 {[%clk 0:00:38]}  a5 {[%clk 0:00:23]} 36. h5 {[%clk 0:00:38]}  a4 {[%clk 0:00:20]} 37. Rc7 {[%clk 0:00:37]}  Rd5 {[%clk 0:00:17]} 38. Ra7 {[%clk 0:00:33]}  a3 {[%clk 0:00:15]} 39. Rg4 {[%clk 0:00:26]}  Rg5 {[%clk 0:00:14]} 40. Rga4 {[%clk 0:00:26]}  Rxh5 {[%clk 0:00:13]} 41. Rxa3 {[%clk 0:00:25]}  Rd2 {[%clk 0:00:13]} 42. Rf3 {[%clk 0:00:23]}  Re5 {[%clk 0:00:12]} 43. Kg2 {[%clk 0:00:23]}  Re6 {[%clk 0:00:11]} 44. Ra5 {[%clk 0:00:21]}  Kh7 {[%clk 0:00:11]} 45. Raa3 {[%clk 0:00:21]}  Kg6 {[%clk 0:00:11]} 46. Rae3 {[%clk 0:00:21]}  Red6 {[%clk 0:00:10]} 47. Ra3 {[%clk 0:00:21]}  h5 {[%clk 0:00:10]} 48. Ra4 {[%clk 0:00:20]}  Kh6 {[%clk 0:00:09]} 49. Raa3 {[%clk 0:00:15]}  R2d5 {[%clk 0:00:09]} 50. Rfe3 {[%clk 0:00:14]}  g5 {[%clk 0:00:08]} 51. Ra8 {[%clk 0:00:14]}  Rd7 {[%clk 0:00:07]} 52. Rf8 {[%clk 0:00:12]}  Kg6 {[%clk 0:00:07]} 53. Ree8 {[%clk 0:00:11]}  Rf7 {[%clk 0:00:06]} 54. Rxf7 {[%clk 0:00:11]}  Kxf7 {[%clk 0:00:07]} 55. Ra8 {[%clk 0:00:11]}  Kg6 {[%clk 0:00:07]} 56. Ra6 {[%clk 0:00:10]}  Kf5 {[%clk 0:00:07]} 57. Ra4 {[%clk 0:00:10]}  g4 {[%clk 0:00:05]} 58. Rf4+ {[%clk 0:00:09]}  Kg5 {[%clk 0:00:06]} 59. Ra4 {[%clk 0:00:09]}  Re5 {[%clk 0:00:06]} 60. Rb4 {[%clk 0:00:08]}  h4 {[%clk 0:00:04]} 61. gxh4+ {[%clk 0:00:08]}  Kxh4 {[%clk 0:00:05]} 62. Ra4 {[%clk 0:00:08]}  f5 {[%clk 0:00:04]} 63. Rb4 {[%clk 0:00:08]}  Kg5 {[%clk 0:00:05]} 64. Ra4 {[%clk 0:00:08]}  Rc5 {[%clk 0:00:05]} 65. Rb4 {[%clk 0:00:08]}  Rc8 {[%clk 0:00:04]} 66. Ra4 {[%clk 0:00:08]}  Re8 {[%clk 0:00:05]} 67. Rb4 {[%clk 0:00:08]}  Re4 {[%clk 0:00:06]} 68. Rb3 {[%clk 0:00:08]}  Kf4 {[%clk 0:00:06]} 69. Ra3 {[%clk 0:00:07]}  Rc4 {[%clk 0:00:06]} 70. Rb3 {[%clk 0:00:07]}  Ke4 {[%clk 0:00:06]} 71. Ra3 {[%clk 0:00:07]}  f4 {[%clk 0:00:06]} 72. Rb3 {[%clk 0:00:07]}  Rd4 {[%clk 0:00:05]} 73. Ra3 {[%clk 0:00:07]}  Rd5 {[%clk 0:00:04]} 74. Ra4+ {[%clk 0:00:07]}  Kf5 {[%clk 0:00:05]} 75. Ra3 {[%clk 0:00:07]}  Kg5 {[%clk 0:00:05]} 76. Ra4 {[%clk 0:00:07]}  Rf5 {[%clk 0:00:05]} 77. Rb4 {[%clk 0:00:07]}  Kh4 {[%clk 0:00:05]} 78. Ra4 {[%clk 0:00:05]}  f3+ {[%clk 0:00:04]} 79. Kh2 {[%clk 0:00:05]}  Rh5 {[%clk 0:00:04]} 80. Rb4 {[%clk 0:00:04]}  Kg5+ {[%clk 0:00:05]} 81. Kg1 {[%clk 0:00:04]}  Rh3 {[%clk 0:00:05]} 82. Ra4 {[%clk 0:00:04]}  Rh4 {[%clk 0:00:05]} 83. Ra5+ {[%clk 0:00:04]}  Kf4 {[%clk 0:00:05]} 84. Ra4+ {[%clk 0:00:04]}  Kf5 {[%clk 0:00:06]} 85. Ra5+ {[%clk 0:00:04]}  Kg6 {[%clk 0:00:06]} 86. Ra6+ {[%clk 0:00:05]}  Kg5 {[%clk 0:00:07]} 87. Ra5+ {[%clk 0:00:05]}  Kf4 {[%clk 0:00:07]} 88. Ra4+ {[%clk 0:00:05]}  Ke5 {[%clk 0:00:08]} 89. Ra5+ {[%clk 0:00:05]}  Kd4 {[%clk 0:00:09]} 90. Ra4+ {[%clk 0:00:05]}  Kc5 {[%clk 0:00:09]} 91. Ra5+ {[%clk 0:00:06]}  Kd6 {[%clk 0:00:10]} 92. Ra6+ {[%clk 0:00:06]}  Ke5 {[%clk 0:00:08]} 93. Ra5+ {[%clk 0:00:06]}  Kf4 {[%clk 0:00:09]} 1/2-1/2


[Site "https://www.chess.com"]

[Event "Titled Tuesday Blitz March 07 Late 2023"]
[White "Prem, Pranav"]
[Black "Eggleston, Thomas A"]
[WhiteFideId "30901057"]
[BlackFideId "412139"]
[WhiteElo "1970"]
[BlackElo "2155"]
[Result "1-0"]
[Round "01"]
[TimeControl "180+2"]
[Date "2023.03.07"]
[WhiteClock "0:00:17"]
[BlackClock "0:00:10"]

1. d4 {[%clk 0:02:57]}  e6 {[%clk 0:03:00]} 2. c4 {[%clk 0:02:57]}  f5 {[%clk 0:03:00]} 3. Nc3 {[%clk 0:02:56]}  Nf6 {[%clk 0:03:00]} 4. Bf4 {[%clk 0:02:56]}  Bb4 {[%clk 0:03:00]} 5. Qc2 {[%clk 0:02:55]}  O-O {[%clk 0:03:00]} 6. Nf3 {[%clk 0:02:52]}  c5 {[%clk 0:02:52]} 7. e3 {[%clk 0:02:49]}  cxd4 {[%clk 0:02:45]} 8. exd4 {[%clk 0:02:50]}  d5 {[%clk 0:02:45]} 9. a3 {[%clk 0:02:39]}  Bd6 {[%clk 0:02:41]} 10. Bxd6 {[%clk 0:02:29]}  Qxd6 {[%clk 0:02:41]} 11. c5 {[%clk 0:02:29]}  Qe7 {[%clk 0:02:38]} 12. b4 {[%clk 0:02:30]}  Ne4 {[%clk 0:02:34]} 13. Bd3 {[%clk 0:02:27]}  Bd7 {[%clk 0:02:27]} 14. O-O {[%clk 0:02:26]}  Be8 {[%clk 0:02:27]} 15. Ne5 {[%clk 0:02:23]}  Nd7 {[%clk 0:02:26]} 16. Nxd7 {[%clk 0:02:10]}  Bxd7 {[%clk 0:02:17]} 17. f3 {[%clk 0:02:10]}  Nxc3 {[%clk 0:02:14]} 18. Qxc3 {[%clk 0:02:10]}  f4 {[%clk 0:02:15]} 19. b5 {[%clk 0:02:07]}  Kh8 {[%clk 0:02:11]} 20. Rfe1 {[%clk 0:02:05]}  Rae8 {[%clk 0:02:06]} 21. Re5 {[%clk 0:02:01]}  Rf6 {[%clk 0:02:05]} 22. Rae1 {[%clk 0:01:56]}  Rh6 {[%clk 0:01:59]} 23. Rxd5 {[%clk 0:01:22]}  Qh4 {[%clk 0:01:59]} 24. Rxd7 {[%clk 0:01:18]}  Qxh2+ {[%clk 0:01:58]} 25. Kf1 {[%clk 0:01:18]}  Qg3 {[%clk 0:01:41]} 26. Be4 {[%clk 0:01:06]}  Rh1+ {[%clk 0:01:33]} 27. Ke2 {[%clk 0:01:05]}  Qxg2+ {[%clk 0:01:32]} 28. Kd1 {[%clk 0:01:06]}  Rh2 {[%clk 0:01:28]} 29. d5 {[%clk 0:01:00]}  exd5 {[%clk 0:01:21]} 30. Rxd5 {[%clk 0:00:55]}  Qa2 {[%clk 0:01:12]} 31. Rd7 {[%clk 0:00:42]}  Rg2 {[%clk 0:01:03]} 32. Rd2 {[%clk 0:00:31]}  Rxd2+ {[%clk 0:00:55]} 33. Qxd2 {[%clk 0:00:32]}  Qa1+ {[%clk 0:00:43]} 34. Ke2 {[%clk 0:00:28]}  Qxa3 {[%clk 0:00:39]} 35. c6 {[%clk 0:00:24]}  bxc6 {[%clk 0:00:37]} 36. bxc6 {[%clk 0:00:25]}  Qa6+ {[%clk 0:00:31]} 37. Kf2 {[%clk 0:00:21]}  Qb6+ {[%clk 0:00:31]} 38. Kg2 {[%clk 0:00:20]}  Qc5 {[%clk 0:00:22]} 39. Rh1 {[%clk 0:00:19]}  Qg5+ {[%clk 0:00:22]} 40. Kf1 {[%clk 0:00:19]}  h6 {[%clk 0:00:22]} 41. c7 {[%clk 0:00:18]}  Qb5+ {[%clk 0:00:20]} 42. Qe2 {[%clk 0:00:18]}  Qc5 {[%clk 0:00:18]} 43. Qc2 {[%clk 0:00:18]}  Qb5+ {[%clk 0:00:16]} 44. Kf2 {[%clk 0:00:17]}  Qb6+ {[%clk 0:00:15]} 45. Kg2 {[%clk 0:00:17]}  Rc8 {[%clk 0:00:14]} 46. Rd1 {[%clk 0:00:17]}  g5 {[%clk 0:00:11]} 47. Rd7 {[%clk 0:00:16]}  g4 {[%clk 0:00:09]} 48. Rh7+ {[%clk 0:00:16]}  Kg8 {[%clk 0:00:09]} 49. Qc4+ {[%clk 0:00:17]}  Kf8 {[%clk 0:00:10]} 50. Qf7# {[%clk 0:00:17]} 1-0


[Site "https://www.chess.com"]

[Event "Titled Tuesday Blitz March 07 Late 2023"]
[White "mohsengabr2002"]
[Black "Vlassov, Nikolai"]
[BlackFideId "4103360"]
[WhiteElo "2304"]
[BlackElo "2324"]
[Result "0-1"]
[Round "01"]
[TimeControl "180+2"]
[Date "2023.03.07"]
[WhiteClock "0:00:20"]
[BlackClock "0:00:11"]

1. b3 {[%clk 0:02:58]}  e5 {[%clk 0:02:59]} 2. e3 {[%clk 0:02:58]}  a6 {[%clk 0:02:58]} 3. Bb2 {[%clk 0:02:59]}  Nc6 {[%clk 0:02:57]} 4. g3 {[%clk 0:02:57]}  d5 {[%clk 0:02:57]} 5. Bg2 {[%clk 0:02:57]}  h5 {[%clk 0:02:56]} 6. h3 {[%clk 0:02:57]}  h4 {[%clk 0:02:54]} 7. g4 {[%clk 0:02:57]}  f5 {[%clk 0:02:54]} 8. gxf5 {[%clk 0:02:56]}  Bxf5 {[%clk 0:02:54]} 9. d3 {[%clk 0:02:54]}  Nf6 {[%clk 0:02:54]} 10. Nd2 {[%clk 0:02:54]}  Qd7 {[%clk 0:02:49]} 11. a3 {[%clk 0:02:53]}  O-O-O {[%clk 0:02:44]} 12. Qe2 {[%clk 0:02:52]}  Bc5 {[%clk 0:02:23]} 13. Ngf3 {[%clk 0:02:50]}  Qe7 {[%clk 0:02:09]} 14. b4 {[%clk 0:02:48]}  Bd6 {[%clk 0:02:08]} 15. e4 {[%clk 0:02:44]}  Be6 {[%clk 0:02:04]} 16. exd5 {[%clk 0:02:42]}  Nxd5 {[%clk 0:02:03]} 17. O-O-O {[%clk 0:02:31]}  Nf4 {[%clk 0:02:02]} 18. Qf1 {[%clk 0:02:31]}  g5 {[%clk 0:01:46]} 19. Re1 {[%clk 0:02:27]}  g4 {[%clk 0:01:40]} 20. hxg4 {[%clk 0:02:24]}  Bxg4 {[%clk 0:01:38]} 21. Nh2 {[%clk 0:01:54]}  Bf5 {[%clk 0:01:24]} 22. Bxc6 {[%clk 0:01:53]}  bxc6 {[%clk 0:01:23]} 23. Nhf3 {[%clk 0:01:53]}  a5 {[%clk 0:01:13]} 24. Nxe5 {[%clk 0:01:52]}  Bxe5 {[%clk 0:00:40]} 25. Rxe5 {[%clk 0:01:51]}  Qh7 {[%clk 0:00:24]} 26. Rxa5 {[%clk 0:01:49]}  Bxd3 {[%clk 0:00:23]} 27. cxd3 {[%clk 0:01:37]}  Nxd3+ {[%clk 0:00:21]} 28. Kb1 {[%clk 0:01:31]}  Nxb2+ {[%clk 0:00:19]} 29. Ka1 {[%clk 0:01:15]}  Rxd2 {[%clk 0:00:18]} 30. Qa6+ {[%clk 0:01:14]}  Kd7 {[%clk 0:00:18]} 31. Rc5 {[%clk 0:01:03]}  Qe4 {[%clk 0:00:13]} 32. Rhc1 {[%clk 0:01:02]}  Nd3 {[%clk 0:00:12]} 33. Qxc6+ {[%clk 0:01:01]}  Qxc6 {[%clk 0:00:12]} 34. Rxc6 {[%clk 0:01:01]}  h3 {[%clk 0:00:12]} 35. Rxc7+ {[%clk 0:00:46]}  Kd6 {[%clk 0:00:12]} 36. R1c6+ {[%clk 0:00:45]}  Kd5 {[%clk 0:00:12]} 37. b5 {[%clk 0:00:32]}  h2 {[%clk 0:00:13]} 38. Rd7+ {[%clk 0:00:32]}  Ke4 {[%clk 0:00:13]} 39. Re7+ {[%clk 0:00:30]}  Kf3 {[%clk 0:00:13]} 40. Rf6+ {[%clk 0:00:29]}  Kg2 {[%clk 0:00:13]} 41. Rh7 {[%clk 0:00:23]}  Rxh7 {[%clk 0:00:13]} 42. Rg6+ {[%clk 0:00:23]}  Kf3 {[%clk 0:00:11]} 43. Rh6 {[%clk 0:00:20]}  Rxh6 {[%clk 0:00:11]} 0-1


[Site "https://www.chess.com"]

[Event "Titled Tuesday Blitz March 07 Late 2023"]
[White "Mustafayev, Farid"]
[Black "Botez, Alexandra"]
[WhiteFideId "13408771"]
[BlackFideId "2603365"]
[WhiteElo "2269"]
[BlackElo "2059"]
[Result "1-0"]
[Round "01"]
[TimeControl "180+2"]
[Date "2023.03.07"]
[WhiteClock "0:01:00"]
[BlackClock "0:00:37"]

1. Nf3 {[%clk 0:02:58]}  Nf6 {[%clk 0:02:59]} 2. g3 {[%clk 0:02:54]}  g6 {[%clk 0:02:58]} 3. Bg2 {[%clk 0:02:55]}  d5 {[%clk 0:02:58]} 4. O-O {[%clk 0:02:55]}  Bg7 {[%clk 0:02:58]} 5. b3 {[%clk 0:02:55]}  O-O {[%clk 0:02:57]} 6. Bb2 {[%clk 0:02:55]}  c5 {[%clk 0:02:56]} 7. e3 {[%clk 0:02:53]}  Nc6 {[%clk 0:02:56]} 8. d3 {[%clk 0:02:53]}  Re8 {[%clk 0:02:56]} 9. Nbd2 {[%clk 0:02:53]}  e5 {[%clk 0:02:56]} 10. c4 {[%clk 0:02:52]}  Bf5 {[%clk 0:02:41]} 11. cxd5 {[%clk 0:02:48]}  Nxd5 {[%clk 0:01:52]} 12. e4 {[%clk 0:02:47]}  Ndb4 {[%clk 0:01:52]} 13. exf5 {[%clk 0:02:47]}  Nxd3 {[%clk 0:01:52]} 14. fxg6 {[%clk 0:01:52]}  Nxb2 {[%clk 0:01:49]} 15. gxf7+ {[%clk 0:01:49]}  Kxf7 {[%clk 0:01:46]} 16. Qc2 {[%clk 0:01:49]}  Nd3 {[%clk 0:01:43]} 17. Ne4 {[%clk 0:01:33]}  Ncb4 {[%clk 0:01:28]} 18. Qc4+ {[%clk 0:01:32]}  Qd5 {[%clk 0:01:28]} 19. Nd6+ {[%clk 0:01:27]}  Kg8 {[%clk 0:01:22]} 20. Qxd5+ {[%clk 0:01:25]}  Nxd5 {[%clk 0:01:22]} 21. Nxe8 {[%clk 0:01:25]}  Rxe8 {[%clk 0:01:19]} 22. Ng5 {[%clk 0:01:17]}  Nc3 {[%clk 0:01:03]} 23. Ne4 {[%clk 0:01:14]}  Ne2+ {[%clk 0:00:59]} 24. Kh1 {[%clk 0:01:15]}  b6 {[%clk 0:00:58]} 25. Rad1 {[%clk 0:01:14]}  Ndc1 {[%clk 0:00:44]} 26. Rxc1 {[%clk 0:01:12]}  Nxc1 {[%clk 0:00:45]} 27. Rxc1 {[%clk 0:01:12]}  Rd8 {[%clk 0:00:46]} 28. Bf1 {[%clk 0:01:11]}  Kf8 {[%clk 0:00:45]} 29. f3 {[%clk 0:01:11]}  Bh6 {[%clk 0:00:42]} 30. Rb1 {[%clk 0:01:09]}  Ke7 {[%clk 0:00:40]} 31. Be2 {[%clk 0:01:10]}  Be3 {[%clk 0:00:38]} 32. Kg2 {[%clk 0:01:07]}  Bd4 {[%clk 0:00:39]} 33. Rd1 {[%clk 0:01:06]}  h6 {[%clk 0:00:39]} 34. Bc4 {[%clk 0:01:06]}  Rf8 {[%clk 0:00:39]} 35. a4 {[%clk 0:01:07]}  Kd7 {[%clk 0:00:38]} 36. h4 {[%clk 0:01:07]}  Kc7 {[%clk 0:00:38]} 37. Rd3 {[%clk 0:01:07]}  Kc6 {[%clk 0:00:38]} 38. g4 {[%clk 0:01:07]}  a5 {[%clk 0:00:37]} 39. Kg3 {[%clk 0:01:04]}  Kd7 {[%clk 0:00:38]} 40. g5 {[%clk 0:01:03]}  hxg5 {[%clk 0:00:36]} 41. hxg5 {[%clk 0:01:04]}  Ke7 {[%clk 0:00:37]} 42. g6 {[%clk 0:01:00]} 1-0


[Site "https://www.chess.com"]